{"text_format":"3","workbook":"xlsx","n_sheets":3,"sheets":["титул","кружки","часы внеуроч"],"not_rendered":{"defined_names":1},"read":"whole","date_system":"1900"}

{"sheet":"титул","index":0,"n_rows":30,"n_cols":13,"rows_kept":30,"merged":[[9,0,9,14],[10,0,10,14],[11,0,11,14],[12,0,12,14]]}
[]
[null,"Согласовано                                                                                                                                                                                                                                                                        ",{"$nulls":9},"Утверждаю"]
[null,"Начальник управления образования",{"$nulls":9},"Директор МБОУ \"СОШ №18 с УИОП\""]
[]
[null,"__________________Р.Н.Хузин",{"$nulls":9},"_______________ ФИО","Н.З.Гайнуллин"]
[]
[]
[]
[]
["Комплектование"]
["на 2021-22 учебный год"]
["муниципального бюджетного общеобразовательного учреждения города Набережные Челны"]
["\"Средняя общеобразовательная школа № 18 с УИОП\""]
{"$rows_empty":15}
[null,"Согласовано",null,"Л.В.Золотарева"]
[{"$nulls":3},"С.Р.Мулюкова"]

{"sheet":"кружки","index":1,"n_rows":24,"n_cols":25,"rows_kept":24,"merged":[[1,0,1,19],[3,0,5,0],[3,1,4,3],[3,4,3,19],[4,4,4,5],[4,6,4,7],[4,8,4,9],[4,10,4,11],[4,12,4,13],[4,14,4,15],[4,16,4,17],[4,18,4,19]]}
[]
["Распределение часов дополнительного образования на 2021-2022 учебный год"]
[]
["Паралель","комплектование групп дополнительного образования (кружковая работа)",null,null,"в том числе по направлениям"]
[{"$nulls":4},"техническое",null,"художественно-эстетическое",null,"военно-патриотическое",null,"социально-педагогическое, социально-экономическое",null,"естественно научное",null,"физкультурно спортивное",null,"эколого-биологическое",null,"туристически краеведческое",{"$nulls":3},"групп",null,"часы"]
[null,"кол-во групп","кол-во уч-ся","наполняемость","кол-во групп","кол-во уч-ся","кол-во групп","кол-во уч-ся","кол-во групп","кол-во уч-ся","кол-во групп","кол-во уч-ся","кол-во групп","кол-во уч-ся","кол-во групп","кол-во уч-ся","кол-во групп","кол-во уч-ся","кол-во групп","кол-во уч-ся",null,null,39,null,78]
[1,6,{"$f":"B7*15","v":90},{"$f":"C7/B7","v":15},4,{"$f":"E7*15","v":60},0,{"$f":"G7*15","v":0},0,{"$f":"I7*15","v":0},1,{"$f":"K7*15","v":15},0,{"$f":"M7*15","v":0},1,{"$f":"O7*15","v":15},0,{"$f":"Q7*15","v":0},0,{"$f":"S7*15","v":0}]
[2,4,{"$f":"B8*15","v":60},15,2,{"$f":"E8*15","v":30},0,0,0,0,1,15,1,15,0,0,0,0,0,0]
[3,5,75,15,2,30,1,15,0,0,1,15,0,0,0,0,0,0,1,15]
[4,4,60,15,2,30,0,0,0,0,1,15,1,15,0,0,0,0,0,0]
["1-4 классы",19,285,15,{"$f":"E7+E8+E9+E10","v":10},{"$f":"F7+F8+F9+F10","v":150},1,15,0,0,4,60,2,30,1,15,0,0,1,15]
[5,4,{"$f":"B12*15","v":60},15,1,15,0,{"$f":"G12*15","v":0},0,{"$f":"I12*15","v":0},1,{"$f":"K12*15","v":15},1,{"$f":"M12*15","v":15},1,{"$f":"O12*15","v":15},0,{"$f":"Q12*15","v":0},0,{"$f":"S12*15","v":0}]
[6,3,{"$f":"B13*15","v":45},15,1,15,0,0,1,15,0,0,0,0,0,0,0,0,1,15]
[7,3,45,15,0,0,1,15,0,0,1,15,0,0,0,0,0,0,1,15]
[8,3,45,15,0,0,0,0,1,15,0,0,0,0,1,15,0,0,1,15]
[9,5,75,15,0,0,0,0,0,0,1,15,1,15,3,45,0,0,0,0]
["5-9 классы",{"$f":"B12+B13+B14+B15+B16","v":18},{"$f":"SUM(C12:C16)","v":270},15,{"$f":"E12+E13+E14+E15+E16","v":2},{"$f":"F12+F13+F14+F15+F16","v":30},1,15,2,30,3,45,2,30,5,75,0,0,3,45]
[10,2,{"$f":"B18*15","v":30},15,0,0,0,{"$f":"G18*15","v":0},0,{"$f":"I18*15","v":0},1,{"$f":"K18*15","v":15},0,{"$f":"M18*15","v":0},0,{"$f":"O18*15","v":0},1,{"$f":"Q18*15","v":15},0,{"$f":"S18*15","v":0}]
[11,1,{"$f":"B19*15","v":15},15,0,0,0,0,0,0,0,0,1,15,0,0,0,0,0,0]
["10-11 классы",{"$f":"B18+B19","v":3},{"$f":"SUM(C18:C19)","v":45},15,{"$f":"E18+E19","v":0},{"$f":"F18+F19","v":0},0,0,0,0,1,15,1,15,0,0,1,15,0,0]
["1-11 классы",{"$f":"B11+B17+B20","v":40},600,15,{"$f":"E11+E17+E20","v":12},{"$f":"F11+F17+F20","v":180},2,30,2,30,8,120,5,75,6,90,1,15,4,60]
[]
[]
[null,"Директор МБОУ \"СОШ № 18 с УИОП \"",{"$nulls":5},"_________________",null,null,"Н. З. Гайнуллин "]

{"sheet":"часы внеуроч","index":2,"n_rows":64,"n_cols":8,"rows_kept":64,"merged":[[0,0,0,6]]}
["Информация о часах внеурочной работы на 2021-2022 учебный год"]
[]
[]
["Класс","Количество часов","Наименование кружка","Направление","ФИО педагога","Основное место работы","Образование","Должность"]
["1а",1,"Начальное техническое моделирование","техническое","Хакимова Рамзия Раисовна","СОШ № 18","высшее","учитель начальных классов"]
["1б",1,"Начальное техническое моделирование","техническое","Шайхутдинова Людмила Викторовна","СОШ № 18","высшее","учитель  начальных классов"]
["1в",1,"Начальное техническое моделирование","техническое","Минсалимова Элина Григорьевна","СОШ № 18","высшее","учитель начальных классов"]
["1г",1,"Начальное техническое моделирование","техническое","Мухаметьянова Гульшат Фанилевна","СОШ № 18","среднее специальное","учитель  начальных классов"]
["1г",1,"ЮИД","социально-педагогическое","Мухаметьянова Гульшат Фанилевна","СОШ № 18","среднее специальное","учитель  начальных классов"]
["1а",1,"\"Магия интеллекта\"","естественно научное","Хакимова Рамзия Раисовна","СОШ № 18","высшее","учитель начальных классов"]
["1а",1,"\"Занимательные сказки\" на английском языке","художественно-эстетическое","Бадретдинова Резеда Рамзилевна","СОШ № 18","высшее","учитель английского языка"]
["1б",1,"\"Занимательные сказки\" на английском языке","художественно-эстетическое","Авзалова Гюльназ Фаритовна","СОШ № 18","высшее","учитель английского языка"]
["1в",1,"\"Занимательные сказки\" на английском языке","художественно-эстетическое","Авзалова Гюльназ Фаритовна","СОШ № 18","высшее","учитель английского языка"]
["1г",1,"\"Занимательные сказки\" на английском языке","художественно-эстетическое","Авзалова Гюльназ Фаритовна","СОШ № 18","высшее","учитель английского языка"]
["2а",1,"Начальное техническое моделирование","техническое","Талипова Лариса Леруновна","СОШ № 18","высшее","учитель  начальных классов"]
["2б",1,"ЮИД","социально-педагогическое","Гимадиева Замиля Киямутдиновна","СОШ № 18","высшее","учитель  начальных классов"]
["2б",1,"Начальное техническое моделирование","техническое","Гимадиева Замиля Киямутдиновна","СОШ № 18","высшее","учитель  начальных классов"]
["2в",1,"\"Магия интеллекта\"","естественно научное","Ставцева Надежда Тимофеевна","СОШ № 18","среднее специальное","учитель  начальных классов"]
["2г",1,"ЮИД","социально-педагогическое","Мифтахова Наиля Ильнуровнап","СОШ № 18","среднее специальное","учитель  начальных классов"]
["3а",1,"Татарстан хэзинэлэре","туристически краеведческое","Мирзаянова Айгуль Рафисовна","СОШ № 18","высшее","учитель  начальных классов"]
["3б",1,"Начальное техническое моделирование","техническое","Сафаргалина Нурия Шайхнуровна","СОШ № 18","высшее","учитель  начальных классов"]
["3в",1,"Начальное техническое моделирование","техническое","Шангараева Ангелина Альбертовна","СОШ № 18","среднее специальное","учитель  начальных классов"]
["3в",1,"Акценты мастерства","художественно-эстетическое","Шангараева Ангелина Альбертовна","СОШ № 18","среднее специальное","учитель  начальных классов"]
["3г",1,"ЮИД","социально-педагогическое","Сибгатуллина Назиля Ильфатовна","СОШ № 18","среднее специальное","учитель  начальных классов"]
["4а",1,"История моего родного края (СНТ)","естественно научное","Мухамадиева Резеда Зуфаровна","СОШ № 18","высшее","учитель начальных классов"]
["4б",1,"Начальное техническое моделирование","техническое","Шагапова Галима Ахмадиевна","СОШ № 18","среднее специальное","учитель начальных классов"]
["4в",1,"Тимуровское движение","социально-педагогическое","Дарземанова Эльвира Ильдаровна","СОШ № 18","среднее специальное","учитель начальных классов"]
["4г",1,"Начальное техническое моделирование","техническое","Будяшкина Алёна Юрьевна","СОШ № 18","среднее специальное","учитель  начальных классов"]
["1-4 классы",2,"Арт-терапия","социально-педагогическое","Стахеева Варвара Ивановна","СОШ № 18","высшее","Педагог-психолог"]
["1-4 классы",2,"В мире музыки","художественно-эстетическое","Казека  Эльвира Маратовна","СОШ № 18","высшее","учитель музыки"]
["5а",2,"\"Магия интеллекта\"","естественно научное","Шарапова Марьям Минрахмановна","СОШ № 18","высшее","учитель математики"]
["5В",1,"РДШ","социально-педагогическое","Аржанцева Светлана Геннадевна","СОШ № 18","высшее","учитель истории и обществознания"]
["5г",1,"История моего родного края (СНТ)","естественно научное","Алетдинова Гузалия Ракиповна","СОШ № 18","высшее","учитель математики"]
["6А",1,"мин татарча сойлэшэм","туристически краеведческое","Хусайнова Нурсия Махтумзяновна","СОШ № 18","высшее","учитель татарского языка и литературы"]
["6в",1,"Патриоты Челнов","военно-патриотическое","Миркасимова Адиля Раяновна","СОШ № 18","высшее","учитель математики"]
["7а",2,"Тимуровское движение","социально-педагогическое","Шафигуллина Рузалия Газизьяновна","СОШ № 18","высшее","учитель технологии"]
["7в",2,"Историческое наследие школы","туристически краеведческое","Магдиева Альмира Марселовна","СОШ № 18","высшее","учитель истории и обществознания"]
["8а",2,"Мирас хэзинэлэре","туристически краеведческое","Яхина Альбина Тимерхановна","СОШ № 18","высшее","учитель татарского языка и литературы"]
["9а",2,"Педагогическое наследие","социально-педагогическое","Безрукова Лилия Вафировна","СОШ № 18","высшее","учитель русского языка и литературы"]
["9а",1,"волейбол","физкультурно спортивное","Козвонин Александр Иванович","СОШ № 18","высшее","учитель физической культуры"]
["9б",1,"волейбол","физкультурно спортивное","Козвонин Александр Иванович","СОШ № 18","высшее","учитель физической культуры"]
["9в",1,"волейбол","физкультурно спортивное","Козвонин Александр Иванович","СОШ № 18","высшее","учитель физической культуры"]
["10а",1,"ОППН","социально-педагогическое","Кашапова Илиза Забировна","СОШ № 18","высшее","учитель английского языка"]
["5-6 классы",1,"Рукоделье «золотые ручки»","художественно-эстетическое","Шафигуллина Рузалия Газизьяновна","СОШ № 18","высшее","учитель технологии"]
["5-7 классы",3,"«Техническое творчество»","техническое","Ахтямов Булат Салаватович","СОШ№ 18","высшее","учитель технологии"]
["5-8 классы",1,"Юный эрудит","социально-педагогическое","Бурганова Гульнур Вагизовна","СОШ № 18","высшее","учитель географии"]
["7-8 классы",1,"«Магия интеллекта»","естественно научное","Васильева Галина Гурьевна","СОШ № 18","высшее","учитель математики"]
["6-8 классы",2,"Юнармейцы","военно-патриотическое","Гафурова Фарида Мансуровна","СОШ № 18","высшее","учитель физической культуры"]
["7-9 классы",1,"Семьеведение","социально-педагогическое","Аржанцева Светлана Геннадевна","СОШ № 18","высшее","учитель истории и обществознания"]
["2-8 классы",1,"Национальный калорит","художественно-эстетическое","Нуриахметова Рамиля Фоатовна","СОШ № 18","высшее","учитель татарского языка и литературы"]
["1-11 классы",3,"Здоровень  (спецмедгруппа)","физкультурно спортивное","Валиуллина Рамзия Фоатовна","СОШ № 18","высшее","учитель физической культуры"]
["8-10 классы",2,"баскетбол","физкультурно спортивное","Козвонин Александр Иванович","СОШ № 18","высшее","учитель физической культуры"]
["4-7 классы",2,"волейбол","физкультурно спортивное","Гафурова Фарида Мансуровна","СОШ № 18","высшее","учитель физической культуры"]
["9-11 классы",2,"Удивительное рядом (по физике)","естественно научное","Нуриахметова Зухра Махмутовна","СОШ № 18","высшее","учитель физики"]
["9-11 классы",1,"Живая химия","естественно научное","Вдовиченко Тамара Васильевна","СОШ № 18","высшее","учитель химии"]
["5-8 классы",2,"Мир под микроскопом","естественно научное","Алексашечкина Вера Владимировна","СОШ № 18","высшее","учитель биологии"]
["9-11 классы",2,"Экологическое колесо","эколого-биологическое","Алексашечкина Вера Владимировна","СОШ № 18","высшее","учитель биологии"]
["7-11 классы",2,"Школьное самоуправление","социально-педагогическое","Чигирова Наталья Юрьевна","СОШ № 18","высшее","педагог-организатор"]
["5-11 классы",2,"Икс, игрек и его друзья","естественно научное","Бадриева Лилия Фаритовна","СОШ № 18","высшее","учитель математики"]
["1-5 классы",3,"Дзюдо","физкультурно спортивное","Пашаева Анна Айдиновна","СОШ № 18","высшее","педагог доп образования"]
["6-8 классы",3,"Дзюдо","физкультурно спортивное","Пашаева Анна Айдиновна","СОШ № 19","высшее","педагог доп образования"]
["ИТОГО",{"$f":"SUM(B5:B61)","v":80}]
[]
[null,"Директор МБОУ \"СОШ № 18 с УИОП \"",null,null,"_________________",null,"Н. З. Гайнуллин "]